bitfinex/quotes_SOLUSD_20250217
["timestamp","ask_amount","ask_price","bid_price","bid_amount"]
[1739773214775,10.14365806,184.71,184.65,15.55915806]
[1739773214976,10.14365806,184.71,184.65,35.55915806]
[1739773215374,10.14365806,184.71,184.65,30.14365806]
[1739773215579,10.14365806,184.73,184.67,10.14365806]
[1739773215776,10.14365806,184.74,184.68,10.14365806]
[1739773216002,10.20665806,184.75,184.69,15.55805806]
[1739773216362,0.063,184.75,184.69,15.55805806]
[1739773216758,15.61935806,184.75,184.69,10.14365806]
[1739773216976,10.14365806,184.73,184.67,10.14365806]
[1739773217184,40.14365806,184.72,184.65,30.14365806]
[1739773217959,40.14365806,184.72,184.65,35.55905806]
[1739773218274,40.14365806,184.72,184.65,30.14365806]
[1739773218275,30.0,184.7,184.65,30.14365806]
[1739773218681,40.14365806,184.68,184.63,0.03]
[1739773218880,10.14365806,184.67,184.63,0.03]
[1739773219459,10.14365806,184.64,184.63,0.03]
[1739773219686,40.14365806,184.64,184.63,0.03]
[1739773219882,30.0,184.62,184.57,0.03]
[1739773220180,10.14365806,184.58,184.57,0.03]
[1739773220564,40.14365806,184.58,184.57,0.03]
[1739773222179,58.97320659,184.58,184.57,0.03]
[1739773222496,58.97320659,184.58,184.54,0.063]
[1739773222497,30.0,184.55,184.54,0.063]
[1739773222657,30.0,184.53,184.52,0.063]
[1739773222861,15.89318889,184.53,184.52,0.063]
[1739773223155,15.89318889,184.54,184.52,0.063]
[1739773223361,45.89318889,184.55,184.52,0.063]
[1739773224884,15.89318889,184.53,184.52,0.063]
[1739773225271,15.89318889,184.54,184.52,0.063]
[1739773225669,30.0,184.55,184.52,0.063]
[1739773225670,45.89318889,184.55,184.52,0.063]
[1739773226194,45.89318889,184.53,184.52,0.063]
[1739773226489,15.89318889,184.54,184.52,0.063]
[1739773227088,30.0,184.57,184.52,15.95618889]
[1739773227280,45.89318889,184.57,184.52,0.063]
[1739773227483,15.89318889,184.56,184.52,0.063]
[1739773228280,15.89318889,184.55,184.52,0.063]
[1739773228588,15.89318889,184.53,184.52,0.063]
[1739773228794,15.89318889,184.54,184.52,0.063]
[1739773229468,30.0,184.55,184.52,0.063]
[1739773229469,45.89318889,184.55,184.52,0.063]
[1739773230470,15.89318889,184.56,184.52,0.063]
[1739773230777,15.89318889,184.54,184.52,0.063]
[1739773232682,15.89318889,184.56,184.52,0.063]
[1739773233075,15.89318889,184.55,184.52,0.063]
[1739773233599,15.89318889,184.54,184.48,21.31378889]
[1739773234779,21.31208889,184.54,184.48,15.89318889]
[1739773235100,45.89318889,184.53,184.47,15.89318889]
[1739773235301,15.89318889,184.49,184.45,6.3866]
[1739773235599,15.89318889,184.51,184.45,27.70118889]
[1739773235802,101.85318889,184.54,184.48,15.89318889]
[1739773235984,85.96,184.54,184.49,15.89318889]
[1739773236182,85.96,184.54,184.51,15.89318889]
[1739773237777,85.96,184.54,184.52,15.89318889]
[1739773238679,85.96,184.54,184.52,21.31248889]
[1739773238882,8.4376911,184.6,184.53,21.92798889]
[1739773239188,8.4376911,184.6,184.58,15.89318889]
[1739773239386,8.4376911,184.6,184.59,15.89318889]
[1739773239588,85.96,184.64,184.59,15.89318889]
[1739773239800,85.96,184.64,184.6,15.89318889]
[1739773240703,85.96,184.64,184.59,15.89318889]
[1739773241116,15.89318889,184.63,184.57,17.48868889]
[1739773241317,15.89318889,184.62,184.56,15.89318889]
[1739773242377,15.89318889,184.62,184.56,21.31138889]
[1739773242576,15.89318889,184.63,184.57,15.89318889]
[1739773242803,15.89318889,184.6,184.54,15.89318889]
[1739773242990,15.89318889,184.59,184.53,28.94248889]
[1739773243190,15.89318889,184.61,184.55,15.89318889]
[1739773243595,30.0,184.57,184.47,6.4621]
[1739773244011,15.89318889,184.54,184.48,15.89318889]
[1739773244218,15.89318889,184.53,184.47,27.77608889]
[1739773245396,30.0,184.57,184.49,15.89318889]
[1739773245696,15.89318889,184.56,184.5,15.89318889]
[1739773246038,45.89318889,184.55,184.49,15.89318889]
[1739773246310,45.89318889,184.57,184.51,15.89318889]
[1739773246495,15.89318889,184.56,184.5,15.89318889]
[1739773247105,35.418,184.57,184.5,15.89318889]
[1739773247106,45.89318889,184.57,184.51,15.89318889]
[1739773247282,15.89318889,184.58,184.52,15.89318889]
[1739773249094,15.89318889,184.57,184.51,15.89318889]
[1739773249292,15.89318889,184.56,184.5,15.89318889]
[1739773249824,15.89318889,184.56,184.5,15.92318889]
[1739773250032,15.95618889,184.56,184.5,15.92318889]
[1739773250624,45.89318889,184.55,184.5,0.03]
[1739773250815,45.89318889,184.53,184.5,0.03]
[1739773251201,15.89318889,184.54,184.5,0.03]
[1739773252836,0.063,184.56,184.51,15.89318889]
[1739773253933,0.063,184.56,184.52,15.89318889]
[1739773254116,0.063,184.56,184.5,0.03]
[1739773254117,0.063,184.56,184.54,15.89318889]
[1739773254318,0.063,184.56,184.55,15.89318889]
[1739773255419,0.063,184.56,184.55,21.31168889]
[1739773256335,0.063,184.56,184.55,15.89318889]
[1739773258323,0.063,184.56,184.55,21.31168889]
[1739773258819,0.063,184.56,184.55,29.13548889]
[1739773259016,0.063,184.56,184.55,43.54733742]
[1739773260627,0.063,184.56,184.55,29.13548889]
[1739773261831,0.063,184.56,184.55,43.54733742]
[1739773262213,85.96,184.64,184.56,2.0]
[1739773262526,85.96,184.64,184.63,15.89318889]
[1739773262710,15.89318889,184.7,184.63,15.89318889]
[1739773262916,15.89318889,184.7,184.64,15.89318889]
[1739773263123,15.89318889,184.69,184.63,15.89318889]
[1739773263323,15.89318889,184.66,184.6,15.89318889]
[1739773263913,15.89318889,184.66,184.6,21.31018889]
[1739773264109,51.30848889,184.67,184.61,15.89318889]
[1739773264430,51.30848889,184.67,184.59,15.89318889]
[1739773264431,15.89318889,184.65,184.59,15.89318889]
[1739773264631,15.89318889,184.66,184.6,15.89318889]
[1739773264803,15.89318889,184.69,184.63,15.89318889]
[1739773265011,101.83318889,184.7,184.64,15.89318889]
[1739773265430,85.94,184.7,184.65,15.89318889]
[1739773266324,101.83318889,184.7,184.64,21.30898889]
[1739773267028,45.89318889,184.69,184.63,15.89318889]
[1739773267242,15.89318889,184.68,184.62,15.89318889]
[1739773267937,91.3542,184.7,184.64,21.30888889]
[1739773267938,101.83318889,184.7,184.64,21.30888889]
[1739773268150,85.94,184.7,184.65,15.89318889]
[1739773268939,85.94,184.7,184.64,5.4157]
[1739773268940,85.94,184.7,184.68,15.89318889]
[1739773269317,85.94,184.7,184.67,15.89318889]
[1739773269626,85.94,184.7,184.64,22.07688889]
[1739773269627,15.89318889,184.69,184.64,22.07688889]
[1739773269952,5.4138,184.72,184.64,27.49268889]
[1739773270116,45.89318889,184.71,184.65,15.89318889]
[1739773270317,15.89318889,184.7,184.64,27.49268889]
[1739773271633,15.89318889,184.7,184.64,22.07688889]
[1739773271824,21.30738889,184.7,184.64,22.07688889]
[1739773273255,15.89318889,184.68,184.62,15.89318889]
[1739773273434,15.89318889,184.67,184.61,21.30978889]
[1739773273623,15.89318889,184.67,184.61,15.89318889]
[1739773274047,15.89318889,184.68,184.62,15.89318889]
[1739773275333,21.30798889,184.68,184.62,15.89318889]
[1739773275532,21.30798889,184.68,184.62,21.30968889]
[1739773277327,21.30798889,184.68,184.62,15.89318889]
[1739773277734,51.30758889,184.69,184.63,15.89318889]
[1739773277929,0.063,184.7,184.65,15.89318889]
[1739773278133,0.063,184.7,184.67,15.89318889]
[1739773278847,0.063,184.7,184.68,15.89318889]
[1739773280348,0.063,184.7,184.69,15.89318889]
[1739773281045,0.063,184.7,184.69,17.55688889]
[1739773281244,0.063,184.7,184.69,22.97128889]
[1739773281653,0.063,184.7,184.69,104.47128889]
[1739773293154,0.063,184.73,184.72,20.0]
[1739773293457,0.063,184.73,184.72,117.39318889]
[1739773294541,0.063,184.73,184.72,122.80668889]
[1739773302569,0.063,184.73,184.72,117.04978783]
[1739773309485,0.063,184.73,184.72,91.63628783]
[1739773309992,0.063,184.73,184.72,97.04978783]
[1739773310983,0.063,184.73,184.72,15.54978783]
[1739773316896,0.063,184.73,184.72,97.04978783]
[1739773324215,0.063,184.75,184.74,20.0]
[1739773324385,0.063,184.75,184.74,30.13628783]
[1739773324697,0.063,184.82,184.78,20.0]
[1739773325002,0.063,184.82,184.81,10.13628783]
[1739773326302,0.063,184.82,184.8,10.13628783]
[1739773327919,0.063,184.82,184.81,10.13628783]
[1739773329311,0.063,184.82,184.81,15.54718783]
[1739773329884,8.0606911,184.86,184.81,15.54718783]
[1739773330397,8.0606911,184.86,184.84,10.13628783]
[1739773333208,8.0606911,184.86,184.84,15.54628783]
[1739773333504,7.5606911,184.86,184.84,15.54628783]
[1739773333908,18.44611479,184.88,184.84,15.54628783]
[1739773334082,16.93811479,184.88,184.85,10.13628783]
[1739773334281,0.063,184.86,184.85,10.13628783]
[1739773334501,0.063,184.86,184.84,81.5]
[1739773335504,5.41,184.84,184.77,86.912]
[1739773335686,10.13628783,184.82,184.77,81.5]
[1739773336284,10.13628783,184.83,184.77,97.04828783]
[1739773336483,10.13628783,184.8,184.74,10.13628783]
[1739773336807,15.84185257,184.8,184.74,97.34185257]
[1739773336988,15.84185257,184.83,184.77,15.84185257]
[1739773337197,45.84185257,184.84,184.78,15.84185257]
[1739773337783,34.28656736,184.85,184.79,15.84185257]
[1739773338195,34.28656736,184.85,184.76,15.84185257]
[1739773338196,45.84185257,184.82,184.76,15.84185257]
[1739773338386,15.84185257,184.81,184.75,15.84185257]
[1739773339408,15.84185257,184.79,184.74,81.5]
[1739773339588,15.84185257,184.77,184.71,97.34185257]
[1739773340906,15.84185257,184.78,184.72,15.84185257]
[1739773341118,45.84185257,184.79,184.73,15.84185257]
[1739773341409,15.84185257,184.78,184.72,15.84185257]
[1739773341594,21.25365257,184.78,184.72,15.84185257]
[1739773342406,15.84185257,184.78,184.72,15.84185257]
[1739773342586,15.84185257,184.79,184.73,15.84185257]
[1739773342787,32.77996736,184.81,184.75,15.84185257]
[1739773343188,16.93811479,184.81,184.76,15.84185257]
[1739773343985,32.77996736,184.81,184.75,21.25445257]
[1739773344185,32.77996736,184.81,184.76,15.84185257]
[1739773344799,15.84185257,184.81,184.76,15.84185257]
[1739773346307,16.93811479,184.82,184.78,15.84185257]
[1739773346710,16.93811479,184.83,184.78,15.84185257]
[1739773347113,32.77996736,184.83,184.77,15.84185257]
[1739773347488,32.77996736,184.83,184.78,15.84185257]
[1739773348013,15.84185257,184.83,184.78,15.84185257]
[1739773350809,15.84185257,184.83,184.77,21.25385257]
[1739773352500,15.84185257,184.83,184.78,15.84185257]
[1739773352700,5.4101,184.84,184.78,15.84185257]
[1739773352889,15.84185257,184.83,184.78,15.84185257]
[1739773353086,15.84185257,184.83,184.77,15.84185257]
[1739773354422,21.25225257,184.83,184.77,15.84185257]
[1739773354992,5.4106,184.82,184.76,0.03]
[1739773355202,15.84185257,184.82,184.76,15.87185257]
[1739773355594,15.84185257,184.82,184.76,0.03]
[1739773356221,21.25255257,184.82,184.76,0.03]
[1739773357817,15.84185257,184.82,184.76,15.87185257]
[1739773358196,15.84185257,184.82,184.76,0.03]
[1739773358403,21.25265257,184.82,184.76,0.03]
[1739773358602,15.54832605,184.82,184.76,0.03]
[1739773359404,10.13752605,184.8,184.76,0.03]
[1739773362822,10.13752605,184.81,184.76,0.03]
[1739773363222,5.4106,184.82,184.76,0.03]
[1739773363526,10.13752605,184.81,184.76,0.03]
[1739773368242,10.13752605,184.79,184.76,0.03]
[1739773368449,10.13752605,184.78,184.76,0.03]
[1739773368920,10.13752605,184.79,184.76,0.03]
[1739773369124,10.13752605,184.8,184.76,0.03]
[1739773371614,0.063,184.81,184.77,10.13752605]
[1739773371814,0.063,184.81,184.79,10.13752605]
[1739773372427,0.063,184.81,184.78,10.13752605]
[1739773372628,0.063,184.81,184.77,10.13752605]
[1739773372836,10.20052605,184.81,184.76,81.53]
[1739773373336,15.61142605,184.81,184.76,81.53]
[1739773374313,10.13752605,184.8,184.76,81.53]
[1739773375233,10.13752605,184.79,184.76,0.03]
[1739773375721,10.13752605,184.78,184.76,0.03]
[1739773377353,10.13752605,184.77,184.76,0.03]
[1739773378536,15.54942605,184.78,184.76,0.03]
[1739773378737,57.07564084,184.79,184.76,0.03]
[1739773378915,27.07564084,184.79,184.76,0.03]
[1739773379115,32.48724084,184.79,184.76,0.03]
[1739773379328,62.48724084,184.79,184.76,0.03]
[1739773380127,16.93811479,184.79,184.76,0.03]
[1739773380527,27.07564084,184.79,184.76,0.03]
[1739773380726,32.48724084,184.79,184.76,0.03]
[1739773381122,10.13752605,184.78,184.76,0.03]
[1739773381639,62.48724084,184.79,184.76,0.03]
[1739773382229,15.54912605,184.79,184.76,0.03]
[1739773382539,45.54912605,184.79,184.76,0.03]
[1739773389139,40.13752605,184.77,184.76,0.03]
[1739773390536,10.13752605,184.78,184.76,0.03]
[1739773391052,27.07564084,184.77,184.71,10.13752605]
[1739773391629,27.07564084,184.77,184.71,15.55132605]
[1739773391846,16.93811479,184.77,184.72,10.13752605]
[1739773392022,27.07564084,184.78,184.72,10.13752605]
[1739773392851,32.48764084,184.78,184.72,10.13752605]
[1739773393239,15.54952605,184.78,184.76,0.03]
[1739773395945,32.48764084,184.78,184.76,0.03]
[1739773396164,22.35011479,184.78,184.76,0.03]
[1739773397555,5.412,184.78,184.76,0.03]
[1739773402270,15.54952605,184.78,184.76,0.03]
[1739773402564,53.54937458,184.77,184.76,0.03]
[1739773403767,58.96147458,184.77,184.76,0.03]
[1739773405063,35.4121,184.77,184.76,0.03]
[1739773405248,5.4121,184.77,184.76,0.03]
[1739773405761,58.96147458,184.77,184.76,0.03]
[1739773411383,30.0,184.73,184.7,0.03]
[1739773411661,10.13752605,184.72,184.7,0.03]
[1739773411852,40.13752605,184.71,184.7,0.03]
[1739773412665,45.55132605,184.71,184.7,0.03]
[1739773413355,62.20800143,184.71,184.7,0.03]
[1739773414480,62.20800143,184.71,184.65,6.549]
[1739773414770,10.13752605,184.69,184.65,6.549]
[1739773415265,40.13752605,184.69,184.65,6.549]
[1739773415651,8.65952685,184.68,184.65,6.549]
[1739773415968,8.65952685,184.68,184.65,6.579]
[1739773416466,8.65952685,184.68,184.65,0.03]
[1739773416467,18.7970529,184.68,184.65,0.03]
[1739773416851,3.24482685,184.67,184.65,0.03]
[1739773418466,3.24482685,184.66,184.65,0.03]
[1739773418849,8.66012685,184.66,184.65,0.03]
[1739773420667,3.24482685,184.66,184.65,0.03]
[1739773421171,3.24482685,184.66,184.65,10.16752605]
[1739773423446,3.24482685,184.66,184.65,15.58312605]
[1739773425788,3.24482685,184.72,184.65,15.58312605]
[1739773425988,3.24482685,184.72,184.71,10.13752605]
[1739773426488,3.24482685,184.72,184.69,10.13752605]
[1739773427060,3.24482685,184.71,184.69,10.13752605]
[1739773428371,3.24482685,184.71,184.7,0.03]
[1739773428558,91.293,184.74,184.7,0.03]
[1739773429153,91.293,184.74,184.7,10.16752605]
[1739773429470,85.88,184.74,184.7,10.16752605]
[1739773429790,3.23169367,184.73,184.7,9.66752605]
[1739773430917,3.23169367,184.72,184.69,10.13752605]
[1739773431203,8.64529367,184.72,184.69,10.13752605]
[1739773431405,3.23169367,184.72,184.7,10.13752605]
[1739773431614,3.23169367,184.72,184.68,10.13752605]
[1739773431821,18.78291972,184.72,184.66,10.13752605]
[1739773432111,30.0,184.71,184.66,10.13752605]
[1739773432301,33.23169367,184.71,184.66,10.13752605]
[1739773433208,30.0,184.69,184.65,0.03]
[1739773433500,40.13752605,184.69,184.65,0.03]
[1739773433801,3.23169367,184.68,184.65,0.03]
[1739773434875,3.23169367,184.67,184.65,0.03]
[1739773435296,3.23169367,184.67,184.66,10.13752605]
[1739773436100,3.23169367,184.67,184.65,10.16752605]
[1739773436291,3.23169367,184.67,184.65,0.03]
[1739773437902,3.23169367,184.66,184.65,0.03]
[1739773440882,8.64699367,184.66,184.65,0.03]
[1739773441383,18.78451972,184.66,184.65,0.03]
[1739773441682,62.19636825,184.66,184.65,0.03]
[1739773444000,48.78451972,184.66,184.65,0.03]
[1739773444180,3.23169367,184.66,184.65,0.03]
[1739773444380,3.23169367,184.66,184.64,10.13752605]
[1739773446008,3.23169367,184.65,184.64,10.13752605]
[1739773449204,3.23169367,184.65,184.63,10.13752605]
[1739773449511,8.64729367,184.65,184.62,10.13752605]
[1739773449713,3.23169367,184.65,184.62,10.13752605]
[1739773450089,3.23169367,184.65,184.63,10.13752605]
[1739773450896,3.23169367,184.64,184.63,10.13752605]
[1739773452304,3.23169367,184.64,184.63,15.55372605]
[1739773454124,3.23169367,184.64,184.63,10.13752605]
[1739773456111,3.23169367,184.64,184.62,25.4164]
[1739773456316,3.23169367,184.64,184.63,10.13752605]
[1739773458914,3.23169367,184.64,184.63,15.55372605]
[1739773459119,3.23169367,184.64,184.63,97.05372605]
[1739773460815,28.21588286,184.69,184.66,20.0]
[1739773461019,28.21588286,184.69,184.68,10.13752605]
[1739773463401,28.21588286,184.69,184.68,15.55222605]
[1739773464428,28.21588286,184.69,184.68,57.65913025]
[1739773465021,28.27888286,184.69,184.68,57.65913025]
[1739773466933,28.27888286,184.69,184.68,139.15913025]
[1739773467225,0.063,184.72,184.71,26.3183]
[1739773467410,0.063,184.72,184.71,117.95582605]
[1739773470316,0.063,184.72,184.71,123.36962605]
[1739773473433,0.063,184.72,184.71,117.95582605]
[1739773474324,0.063,184.72,184.71,111.63752605]
[1739773474531,0.063,184.72,184.7,30.13752605]
[1739773475715,0.063,184.72,184.71,30.13752605]
[1739773478539,0.063,184.72,184.71,35.55132605]
[1739773480340,0.063,184.72,184.71,117.05132605]
[1739773485946,0.063,184.72,184.71,123.65172605]
[1739773486750,0.063,184.72,184.71,138.06357458]
[1739773487248,0.063,184.72,184.71,137.06357458]
[1739773487447,0.063,184.72,184.71,123.65172605]
[1739773488352,0.063,184.72,184.7,0.03]
[1739773488551,0.063,184.72,184.71,10.13752605]
[1739773491050,0.063,184.72,184.71,15.55132605]
[1739773492143,0.063,184.72,184.71,97.05132605]
[1739773493734,0.063,184.72,184.71,81.5]
[1739773494151,0.063,184.72,184.7,0.03]
[1739773494530,0.063,184.72,184.7,10.16752605]
[1739773494741,0.063,184.72,184.7,0.03]
[1739773496242,0.063,184.72,184.71,30.13752605]
[1739773496450,0.063,184.72,184.71,118.23792605]
[1739773497140,0.063,184.72,184.71,111.63752605]
[1739773497438,0.063,184.72,184.71,91.63752605]
[1739773498245,0.063,184.72,184.71,97.05132605]
[1739773500638,0.063,184.72,184.71,102.75181406]
[1739773505061,0.063,184.72,184.71,103.75181406]
[1739773505265,0.063,184.72,184.71,117.16366259]
[1739773506547,0.063,184.72,184.71,116.16366259]
[1739773506950,0.063,184.72,184.71,125.21476259]
[1739773507144,0.063,184.76,184.74,20.0]
[1739773507351,0.063,184.76,184.75,15.83801406]
[1739773508068,0.063,184.76,184.75,97.33801406]
[1739773508279,0.063,184.76,184.75,113.17602812]
[1739773509282,0.063,184.76,184.75,102.75071406]
[1739773516962,0.063,184.76,184.75,133.00057665]
[1739773517771,0.0001,184.76,184.75,133.00057665]
[1739773517962,0.063,184.81,184.77,1.0]
[1739773518166,0.063,184.81,184.8,35.83801406]
[1739773519151,0.063,184.81,184.8,41.24921406]
[1739773520167,0.063,184.81,184.8,35.83801406]
[1739773520371,0.063,184.81,184.8,41.24921406]
[1739773520678,0.063,184.81,184.8,35.83801406]
[1739773521575,0.063,184.81,184.78,97.33801406]
[1739773521771,0.063,184.81,184.77,15.83801406]
[1739773522189,0.063,184.81,184.78,15.83801406]
[1739773522957,15.90101406,184.81,184.76,15.83801406]
[1739773523284,15.90101406,184.81,184.75,15.83801406]
[1739773523488,5.4112,184.8,184.75,15.83801406]
[1739773523663,13.41184853,184.79,184.75,15.83801406]
[1739773523863,21.24921406,184.8,184.74,97.33801406]
[1739773524168,0.063,184.81,184.76,15.83801406]
[1739773524678,5.474,184.81,184.76,15.83801406]
[1739773525058,29.24986259,184.8,184.75,0.03]
[1739773525779,5.4115,184.79,184.75,0.03]
[1739773526073,13.41184853,184.78,184.75,0.03]
[1739773526578,1.5898,184.77,184.75,0.03]
[1739773527303,5.4124,184.76,184.75,0.03]
[1739773527581,34.66226259,184.76,184.75,0.03]
[1739773528377,13.41184853,184.72,184.7,0.03]
[1739773528556,29.24986259,184.71,184.7,0.03]
[1739773529286,13.41184853,184.71,184.7,0.03]
[1739773529466,18.82564853,184.71,184.7,0.03]
[1739773529671,34.66366259,184.71,184.7,0.03]
[1739773530601,13.90545526,184.75,184.7,0.03]
[1739773530765,13.90545526,184.75,184.7,15.86801406]
[1739773531276,43.41184853,184.74,184.7,0.03]
[1739773531497,5.4133,184.73,184.7,0.03]
[1739773533400,21.25131406,184.73,184.7,0.03]
[1739773533782,5.4133,184.73,184.7,0.03]
[1739773533996,18.82484853,184.74,184.7,0.03]
[1739773534495,13.90545526,184.76,184.72,15.83801406]
[1739773534874,8.49275526,184.76,184.74,15.83801406]
[1739773535088,8.49275526,184.76,184.75,15.83801406]
[1739773535911,8.49275526,184.76,184.75,37.08872812]
[1739773536094,8.49275526,184.78,184.77,20.0]
[1739773536293,8.49275526,184.78,184.77,31.67602812]
[1739773536701,8.49275526,184.78,184.77,38.33492812]
[1739773537812,8.49275526,184.78,184.77,43.74702812]
[1739773538613,0.063,184.81,184.8,20.0]
[1739773538850,0.063,184.81,184.8,35.83801406]
[1739773539011,0.063,184.81,184.8,41.24921406]
[1739773541110,0.063,184.81,184.8,35.83801406]
[1739773544616,0.063,184.81,184.8,41.24921406]
[1739773546833,0.063,184.81,184.8,122.74921406]
[1739773547009,26.70906362,184.85,184.8,136.27731406]
[1739773547202,26.70906362,184.85,184.84,15.83801406]
[1739773548301,26.70906362,184.85,184.84,21.24801406]
[1739773550841,26.70906362,184.85,184.84,102.74801406]
[1739773552431,0.063,184.86,184.84,124.85982812]
[1739773552630,0.063,184.86,184.85,31.67602812]
[1739773552838,0.063,184.86,184.85,113.17602812]
[1739773553021,0.063,184.86,184.85,114.17602812]
[1739773553533,0.063,184.86,184.85,113.17602812]
[1739773553730,0.063,184.86,184.85,114.17602812]
[1739773554237,0.063,184.89,184.86,1.0]
[1739773554440,0.063,184.89,184.88,35.83801406]
[1739773554733,0.063,184.89,184.88,41.24691406]
[1739773557533,0.063,184.89,184.88,122.74691406]
[1739773559530,0.063,184.89,184.88,97.33801406]
[1739773559735,0.063,184.89,184.88,15.83801406]
[1739773560337,0.063,184.89,184.87,15.83801406]
[1739773561447,0.063,184.89,184.84,97.33801406]
[1739773561614,0.063,184.89,184.85,15.83801406]
[1739773564350,15.90101406,184.89,184.83,15.83801406]
[1739773564543,15.83801406,184.88,184.82,15.83801406]
[1739773565418,29.31286259,184.89,184.83,15.83801406]
[1739773565623,5.4089,184.88,184.83,15.83801406]
[1739773566034,21.24691406,184.88,184.82,15.83801406]
[1739773567138,15.83801406,184.86,184.8,97.36801406]
[1739773567532,15.83801406,184.86,184.8,15.86801406]
[1739773567748,5.4097,184.85,184.8,15.86801406]
[1739773569127,21.24691406,184.88,184.82,15.83801406]
[1739773569451,5.4089,184.88,184.82,15.83801406]
[1739773569836,21.24691406,184.88,184.82,15.83801406]
[1739773570146,5.4089,184.88,184.82,15.83801406]
[1739773570349,5.4089,184.88,184.83,15.83801406]
[1739773570840,18.88344853,184.89,184.84,15.83801406]
[1739773571530,18.88344853,184.89,184.87,15.83801406]
[1739773571531,0.063,184.89,184.87,15.83801406]
[1739773572546,0.063,184.89,184.86,15.83801406]
[1739773572929,0.063,184.89,184.87,15.83801406]
[1739773573351,0.063,184.89,184.86,15.83801406]
[1739773574363,0.063,184.89,184.87,15.83801406]
[1739773575257,0.063,184.89,184.88,15.83801406]
[1739773576532,0.063,184.89,184.88,21.24691406]
[1739773576957,0.063,184.89,184.88,15.83801406]
[1739773577660,0.063,184.89,184.87,15.83801406]
[1739773578162,0.063,184.89,184.84,15.86801406]
[1739773578331,15.90101406,184.89,184.84,0.03]
[1739773578529,21.30981406,184.89,184.84,0.03]
[1739773580956,0.063,184.89,184.85,15.83801406]
[1739773581154,0.063,184.89,184.86,15.83801406]
[1739773581554,0.063,184.89,184.87,15.83801406]
[1739773581741,0.063,184.89,184.88,15.83801406]
[1739773583059,0.063,184.89,184.86,15.83801406]
[1739773583249,0.063,184.89,184.85,15.83801406]
[1739773584465,0.063,184.89,184.84,15.86801406]
[1739773584670,15.90101406,184.89,184.84,0.03]
[1739773584844,0.063,184.89,184.84,15.86801406]
[1739773585158,15.90101406,184.89,184.84,0.03]
[1739773585562,29.24986259,184.88,184.84,0.03]
[1739773585749,15.83801406,184.87,184.84,0.03]
[1739773586150,15.83801406,184.85,184.84,0.03]
[1739773587046,29.24986259,184.85,184.84,0.03]
[1739773587246,34.65956259,184.85,184.84,0.03]
[1739773588163,15.83801406,184.87,184.84,0.03]
[1739773588357,0.063,184.89,184.85,15.83801406]
[1739773589167,0.063,184.89,184.87,15.83801406]
[1739773589577,0.063,184.89,184.86,15.83801406]
[1739773590248,0.063,184.89,184.88,15.83801406]
[1739773591767,0.063,184.89,184.88,21.24691406]
[1739773599180,0.063,184.89,184.88,102.74691406]
[1739773609687,0.063,184.89,184.88,81.5]
[1739773610072,0.063,184.89,184.87,15.83801406]
[1739773610273,0.063,184.89,184.86,0.03]
[1739773610464,15.83801406,184.88,184.86,0.03]
[1739773611160,13.41184853,184.87,184.86,0.03]
[1739773611358,29.24986259,184.87,184.86,0.03]
[1739773611557,34.65906259,184.87,184.86,0.03]
[1739773612187,13.41184853,184.87,184.86,0.03]
[1739773613058,24.39376932,184.89,184.86,0.03]
[1739773613465,13.41184853,184.88,184.86,0.03]
[1739773615480,8.55575526,184.89,184.86,15.86801406]
[1739773615687,8.55575526,184.89,184.87,15.83801406]
[1739773616068,8.55575526,184.89,184.86,15.86801406]
[1739773618473,8.55575526,184.89,184.86,0.03]
[1739773618885,8.55575526,184.89,184.86,15.86801406]
[1739773619272,8.55575526,184.89,184.87,15.83801406]
[1739773619481,8.55575526,184.89,184.88,15.83801406]
[1739773620275,8.55575526,184.89,184.88,21.24691406]
[1739773620673,0.063,184.89,184.88,21.24691406]
[1739773621566,0.063,184.89,184.88,102.74691406]
[1739773628595,0.063,184.89,184.88,97.33801406]
[1739773628793,0.063,184.89,184.86,15.86801406]
[1739773629194,29.31286259,184.89,184.86,0.03]
[1739773630001,13.47484853,184.89,184.86,0.03]